Cogmind - Beta 15 @@@ ROGUE MODE // 2025.06.01 @ 12:43:57 Player: Zamshi Result: Destroyed by as-39406 with Assembled Maul Performance ------------- Evolutions (0) 0 Regions Visited (4) 800 Robots Destroyed (28) 140 Value Destroyed (523) 523 Prototype IDs (0) 0 Alien Tech Used (0) 0 Bonus (60) 60 TOTAL SCORE: 1523 Bonus ------- Follower Combat Kills 67 Friendly Fire -7 Cogmind --------- Core Integrity 0/250 Matter 285/300 Energy 101/125 System Corruption 0% Temperature Cool (0) Movement Flying (37) Location -9/Mines Parts ------- > --- POWER (1) -------- Light Ion Engine > --- PROPULSION (2) --- Flight Unit Flight Unit > --- UTILITY (2) ------ Sensor Array Transport Network Coupler > --- WEAPON (2) ------- Battle Cannon > --- INVENTORY (5) ---- Aluminum Leg Gravmag System Improved Terrain Scanner Light EM Pulse Cannon Peak State ------------ > --- POWER ------------ Micro Nuclear Core > --- PROPULSION ------- Light Treads Light Treads > --- UTILITY ---------- Large Storage Unit Sensor Array > --- WEAPON ----------- Particle Gun Light Assault Rifle > --- INVENTORY -------- Light Ion Engine Light Ion Engine Compact Wheel Gravmag System Heat Sink Improved Heat Sink Medium Storage Unit Makeshift Terrain Scanner Seismic Detector Transport Network Coupler Targeting Computer Targeting Computer Power Shielding Grenade Launcher [Rating: 13] Favorites ----------- Power Micro Nuclear Core Engine Ion Engine Power Core Micro Nuclear Core Propulsion Light Treads Treads Light Treads Leg Aluminum Leg Hover Unit Gravmag System Flight Unit Flight Unit Utility Large Storage Unit Device Sensor Array Storage Large Storage Unit Processor Transport Network Coupler Weapon Assault Rifle Energy Gun Particle Gun Energy Cannon Light EM Pulse Cannon Ballistic Gun Assault Rifle Ballistic Cannon Battle Cannon Launcher Grenade Launcher Build | -11 -10 -10 -10 -9 ------- Run | Yrd Mat Min Exi Min Slots Evolved . | . . . . . Power . | . . . . . Propulsion . | . . . . . Utility . | . . . . . Weapon . | . . . . . Parts Attached 24 | 6 5 1 1 11 Power 4 | 1 . . 1 2 Engine 3 | 1 . . . 2 Core 1 | . . . 1 . Reactor . | . . . . . Propulsion 7 | 2 . . . 5 Treads 2 | 2 . . . . Leg 1 | . . . . 1 Wheel . | . . . . . Hover 1 | . . . . 1 Flight 3 | . . . . 3 Utility 7 | 1 4 1 . 1 Device 1 | . . 1 . . Storage 5 | 1 4 . . . Processor 1 | . . . . 1 Hackware . | . . . . . Protection . | . . . . . Artifact . | . . . . . Weapon 6 | 2 1 . . 3 Energy Gun 1 | . . . . 1 Energy Cannon 1 | . . . . 1 Ballistic Gun 2 | 2 . . . . Ballistic Cannon 1 | . . . . 1 Launcher 1 | . 1 . . . Special Weapon . | . . . . . Impact Weapon . | . . . . . Slashing Weapon . | . . . . . Piercing Weapon . | . . . . . Special Melee Weapon . | . . . . . Unidentified Prototypes . | . . . . . Parts Lost 4 | . . . . 4 Power 1 | . . . . 1 Propulsion 2 | . . . . 2 Utility . | . . . . . Weapon 1 | . . . . 1 Highest Loss Streak 2 | . . . . 2 To Critical Strikes . | . . . . . Average Backups 10 | 1 7 10 11 9 Power 1 | . 1 1 2 1 Propulsion 1 | 1 2 1 1 1 Utility 5 | . 2 6 6 5 Weapon 1 | . 1 1 1 1 Tool/Special . | . . . . . Unused Backups 13 | . . 3 . 10 Power 1 | . . . . 1 Propulsion 2 | . . 1 . 1 Utility 9 | . . 1 . 8 Weapon 1 | . . 1 . . Tool/Special . | . . . . . Average Slot Usage (%) 88 | . 95 94 89 79 Engine 6 | . 14 14 3 4 Core 6 | . . . 10 7 Treads 25 | . 28 28 28 17 Device 10 | . . 9 14 14 Storage 15 | . 24 18 14 8 Processor 1 | . . . . 4 Ballistic Gun 15 | . 16 14 17 11 Launcher 3 | . 11 8 . 1 Peak Build Rating 13 | 6 8 8 12 13 Average Rating 8 | 4 7 7 9 8 On Entrance 6 | . 6 8 7 12 Naked Turns . | . . . . . Heaviest Build 35 | 13 35 35 30 31 Greatest Support 40 | 40 40 40 40 40 Greatest Overweight (x) 2 | . . . . 2 Average Overweight (x) . | . . . . . Largest Inventory Capacity 25 | 8 25 15 15 15 Average Capacity 13 | 6 11 15 15 11 Most Carried 15 | 3 11 13 13 15 Average Carried 10 | 1 7 10 11 9 Final Capacity 15 | 8 15 15 15 5 Final Carried 13 | 3 11 11 13 4 Class Distribution -------------------- 100% | Mutant Dominant Class ---------------- Mutant | -10/Materials Mutant | -10/Mines Mutant | -10/Exiles Mutant | -9/Mines Resources | -11 -10 -10 -10 -9 ----------- Run | Yrd Mat Min Exi Min Matter Collected 810 | 217 174 100 40 279 Remotely . | . . . . . Salvage Created 504 | . 219 73 40 172 Parts 51 | . 22 8 4 17 Haulers Intercepted . | . . . . . Recyclers Shooed . | . . . . . Parts Field Recycled . | . . . . . Retrieved Matter . | . . . . . Parts Self-Destructed . | . . . . . Prevented . | . . . . . Kills | -11 -10 -10 -10 -9 ------- Run | Yrd Mat Min Exi Min Combat Hostiles Destroyed 25 | . 7 9 . 9 Guns 5 | . . 3 . 2 Cannons 2 | . . . . 2 AOE 18 | . 7 6 . 5 Classes Destroyed 7 | . 6 . . 1 Worker 1 | . 1 . . . Tunneler 1 | . 1 . . . Operator 1 | . 1 . . . Watcher 2 | . 2 . . . Swarmer 16 | . 3 9 . 4 Grunt 7 | . 4 . . 3 Assembled 2 | . . . . 2 Best Kill Streak 7 | . 7 3 . 5 Combat Bots Only 5 | . 5 3 . 5 Max Kills in Single Turn 3 | . 3 3 . 3 Gunslinging . | . . . . . Exploded 3 | . 2 3 . 3 Melee . | . . . . . Uniques/NPCs Destroyed . | . . . . . Combat | -11 -10 -10 -10 -9 -------- Run | Yrd Mat Min Exi Min Hostile Shots Fired 96 | . 12 31 . 53 Missed 35 | . 8 12 . 15 Hits 61 | . 4 19 . 38 Melee 4 | . . . . 4 Projectile 57 | . 4 19 . 34 AOE 8 | . . . . 8 Damage Taken 994 | . 60 196 . 738 Core 265 | . 6 27 . 232 Absorbed by Shields . | . . . . . Core Remaining (%) 100 | 100 . . . . Volleys Fired 56 | . 13 14 5 24 Largest 2 | . 2 2 1 2 Hottest 89 | . 50 50 20 89 Shots Fired 76 | . 19 17 5 35 Gun 43 | . 10 9 5 19 Cannon 13 | . . . . 13 Launcher 20 | . 9 8 . 3 Special . | . . . . . Kinetic 50 | . 10 9 5 26 Thermal . | . . . . . Explosive 20 | . 9 8 . 3 Electromagnetic 6 | . . . . 6 Robot Hit Streak 9 | . 5 4 9 7 Robot Miss Streak 3 | . 1 2 . 3 Penetration Max . | . . . . . Secondary Targets . | . . . . . Shots Hit Robots 38 | . 8 5 5 20 Core Hits 44 | . 16 11 2 15 Critical Kills . | . . . . . Critical Parts Destroyed . | . . . . . Critical Strikes . | . . . . . Melee Attacks . | . . . . . Impact . | . . . . . Slashing . | . . . . . Piercing . | . . . . . Sneak Attacks . | . . . . . Combat Hostiles . | . . . . . Follow-up Attacks . | . . . . . Damage Inflicted 1574 | . 623 344 76 531 Guns 282 | . 52 52 76 102 Cannons 128 | . . . . 128 Explosions 1151 | . 571 292 . 288 Melee . | . . . . . Ramming 13 | . . . . 13 Kinetic 351 | . 52 52 76 171 Thermal . | . . . . . Explosive 1151 | . 571 292 . 288 Electromagnetic 59 | . . . . 59 Impact . | . . . . . Slashing . | . . . . . Piercing . | . . . . . Highest Corruption . | . . . . . Average Corruption . | . . . . . Corruption Purged . | . . . . . Corruption Blocked . | . . . . . Overload Shots . | . . . . . Overflow Damage 18 | . 10 . . 8 Projectiles . | . . . . . Explosions 18 | . 10 . . 8 Melee . | . . . . . Knockbacks 1 | . . . . 1 Impact . | . . . . . Kinetic 1 | . . . . 1 Secondary . | . . . . . Self-Inflicted Damage 61 | . 8 48 . 5 Shots 3 | . 1 2 . . Rammed 2 | . . . . 2 Targets Rammed 2 | . . . . 2 Kicked . | . . . . . Crushed . | . . . . . Highest Temperature 144 | . . . . 144 Average Temperature 46 | . . . . 46 Received Heat Transfer 54 | . 18 . . 36 Siege Activations . | . . . . . Martial Activations . | . . . . . Shielding Activations . | . . . . . Robots Disrupted . | . . . . . Combat Hostiles . | . . . . . Robots Corrupted . | . . . . . Combat Hostiles . | . . . . . Parts Fried . | . . . . . Impact Corruptions . | . . . . . Robots Melted . | . . . . . Combat Hostiles . | . . . . . Parts Melted . | . . . . . Heat Transferred . | . . . . . Parts Sabotaged . | . . . . . Parts Stolen . | . . . . . Parts Stripped . | . . . . . Power Chain Reactions . | . . . . . Alert | -11 -10 -10 -10 -9 ------- Run | Yrd Mat Min Exi Min Maximum Alert Level 1 | . . 1 . 1 Low Security (%) 87 | 100 100 45 . 91 Level 1 12 | . . 54 . 8 Level 2 . | . . . . . Level 3 . | . . . . . Level 4 . | . . . . . Level 5 . | . . . . . High Security . | . . . . . Max Security . | . . . . . Peak Influence 267 | . 159 267 . 218 Initial 57 | . . 57 . . Average 87 | . 36 189 . 101 Influence Increases 898 | . 285 260 5 348 Destroy 0b10 Robot/C 520 | . 140 180 . 200 Destroy 0b10 Robot/NC 30 | . 25 . 5 . Destroy Leader 104 | . 34 30 . 40 Allied During Kill 18 | . . . . 18 Successful Hack 12 | . 12 . . . Disable Machine 45 | . 30 . . 15 Destroy Structure 109 | . 44 50 . 15 Partial Spotted 15 | . . . . 15 Lose Combat Pursuer 45 | . . . . 45 Influence Decreases 866 | . 136 182 232 316 Entered New Map 319 | . . 92 227 . Time Decay 427 | . 136 90 5 196 Lost Part 40 | . . . . 40 Lost Ally 80 | . . . . 80 Squads Dispatched . | . . . . . Investigation . | . . . . . Extermination . | . . . . . Reinforcement . | . . . . . Assault . | . . . . . Garrison . | . . . . . Intercept . | . . . . . Searches Triggered . | . . . . . Construction Impeded . | . . . . . Haulers Reinforced . | . . . . . Active Scanning Responses . | . . . . . Cargo Convoy Interrupts . | . . . . . Stealth | -11 -10 -10 -10 -9 --------- Run | Yrd Mat Min Exi Min Distress Signals . | . . . . . Communications Jammed . | . . . . . Distress Signals . | . . . . . Times Spotted 37 | . 11 6 . 20 Peak Tracking Total 6 | . 3 3 . 6 Tactical Retreats 2 | . . . . 2 Traps | -11 -10 -10 -10 -9 ------- Run | Yrd Mat Min Exi Min Traps Triggered . | . . . . . Indirectly . | . . . . . Trap Hack Attempts . | . . . . . Triggered . | . . . . . Disarmed 3 | . 3 . . . Reprogrammed . | . . . . . Reused . | . . . . . Traps Extracted . | . . . . . Installed . | . . . . . Triggered . | . . . . . Machines | -11 -10 -10 -10 -9 ---------- Run | Yrd Mat Min Exi Min Machines Disabled 3 | . 2 . . 1 Max in Single Turn 1 | . 1 . . . Machines Repaired . | . . . . . Machines Dismantled . | . . . . . Machines Sabotaged . | . . . . . Overloaded Fab Kills . | . . . . . Hacking | -11 -10 -10 -10 -9 --------- Run | Yrd Mat Min Exi Min Machines Accessed 8 | . 4 . 4 . Terminals 3 | . 3 . . . Fabricators . | . . . . . Repair Stations . | . . . . . Recycling Units 1 | . 1 . . . Scanalyzers . | . . . . . Garrison Access . | . . . . . Total Hacks 59 | . 10 . 49 . Successful 54 | . 5 . 49 . Failed 5 | . 5 . . . Catastrophic 1 | . 1 . . . Database Lockouts . | . . . . . Manual . | . . . . . Terminals 5 | . 5 . . . Fabricators . | . . . . . Repair Stations . | . . . . . Recycling Units 5 | . 5 . . . Scanalyzers . | . . . . . Garrison Access . | . . . . . Terminal Hacks 52 | . 3 . 49 . Record 50 | . 1 . 49 . Locate Traps 1 | . 1 . . . Disarm Traps 1 | . 1 . . . Fabricator Hacks . | . . . . . Repair Station Hacks . | . . . . . Recycling Unit Hacks 2 | . 2 . . . Report Inventory 1 | . 1 . . . Retrieve Components 1 | . 1 . . . Scanalyzer . | . . . . . Garrison Access Hacks . | . . . . . Unauthorized Hacks . | . . . . . Terminals . | . . . . . Fabricators . | . . . . . Repair Stations . | . . . . . Recycling Units . | . . . . . Scanalyzers . | . . . . . Garrison Access . | . . . . . Data Cores Recovered 1 | . 1 . . . Used . | . . . . . Hacking Detections 3 | . 3 . . . Full Trace Events . | . . . . . Feedback Events . | . . . . . Feedback Blocked . | . . . . . Robot Schematics Acquired . | . . . . . Robots Built . | . . . . . Authchips . | . . . . . Time . | . . . . . Total Robot Build Rating . | . . . . . Part Schematics Acquired . | . . . . . Parts Built . | . . . . . Authchips . | . . . . . Time . | . . . . . Total Part Build Rating . | . . . . . Parts Repaired . | . . . . . Time . | . . . . . Parts Recycled . | . . . . . Recycled Matter . | . . . . . Retrieved Matter . | . . . . . Retrieved Components 3 | . 3 . . . Parts Scanalyzed . | . . . . . Part Schematics Acquired . | . . . . . Parts Damaged . | . . . . . Bothacking | -11 -10 -10 -10 -9 ------------ Run | Yrd Mat Min Exi Min Used RIF Installer . | . . . . . Robots Hacked . | . . . . . Non-combat . | . . . . . Combat . | . . . . . Robot Hacks Applied . | . . . . . Relay Couplers Released . | . . . . . Fabnet Peak Effective % . | . . . . . Robots Rewired . | . . . . . Allies Hacked . | . . . . . Hacks Repelled . | . . . . . Allies | -11 -10 -10 -10 -9 -------- Run | Yrd Mat Min Exi Min Total Allies 5 | . . . . 5 Largest Group 3 | . . . . 3 Highest-Rated Group 41 | . . . . 41 Highest-Rated Ally 31 | . . . . 31 Total Orders . | . . . . . Ally Attacks 33 | . . . . 33 Total Damage 481 | . . . . 481 Kills 6 | . . . . 6 Allies Corrupted . | . . . . . Allies Melted . | . . . . . Intel | -11 -10 -10 -10 -9 ------- Run | Yrd Mat Min Exi Min Active Infowar (turns) 1690 | . . 130 1031 529 Sensors 1690 | . . 130 1031 529 T.N.C. 177 | . . . . 177 Robot Analysis Total . | . . . . . Derelict Logs Recovered 1 | . . . . 1 Drone Launches . | . . . . . Drone Recoveries . | . . . . . Exploration | -11 -10 -10 -10 -9 ------------- Run | Yrd Mat Min Exi Min Turns Passed 2225 | 77 398 190 1031 529 Spaces Moved 1483 | 46 218 96 634 489 Core 153 | 7 . . . 146 Treads 1154 | 39 218 96 634 167 Legs 12 | . . . . 12 Wheels . | . . . . . Hover 51 | . . . . 51 Flight 113 | . . . . 113 Fastest Speed 37 | 50 160 160 160 37 Average Speed 135 | 143 160 160 160 87 Slowest Speed 200 | 160 160 160 160 200 Overloaded Moves . | . . . . . Propulsion Burnouts . | . . . . . Robots Hopped . | . . . . . Potential Cave-ins . | . . . . . Cave-ins Triggered . | . . . . . Exploration Rate (%) 48 | 5 55 29 73 79 Regions Visited 4 Branch Regions 3 Pre-discovered Areas 1 | . . . 1 . Known Exits Taken . | . . . . . Unknown Exits Taken 4 | 1 1 1 1 . Scrap Searched 2 | . . 1 . 1 Spaces Dug . | . . . . . Terrain Destroyed 118 | . 41 57 . 20 Melee . | . . . . . Projectile 2 | . . . . 2 AOE 116 | . 41 57 . 18 Terrain Rammed . | . . . . . Walls Destroyed . | . . . . . Machines Disabled . | . . . . . Actions | -11 -10 -10 -10 -9 --------- Run | Yrd Mat Min Exi Min Total 1631 | 54 249 119 646 563 Wait 13 | . . . 2 11 Move 1479 | 45 217 95 633 489 Hop . | . . . . . Pick Up 23 | 3 9 3 3 5 Fast Attach 12 | 6 2 . . 4 Attach 14 | . 1 1 1 11 Detach 12 | . 2 2 . 8 Swap 5 | . 2 . 1 2 Drop 15 | . 3 4 1 7 Fire 56 | . 13 14 5 24 Melee . | . . . . . Ram 1 | . . . . 1 Kick . | . . . . . Crush 1 | . . . . 1 Escape Stasis . | . . . . . Rewire . | . . . . . Trap . | . . . . . Miscellaneous . | . . . . . Route ------- -11/Scrapyard -10/Materials (discovered 3 exits: [*Mat x2] / [*Min]) -10/Mines -10/Exiles (discovered 2 exits: [*Min x2]) -9/Mines History --------- Turn | Location | Event 27 | -11/Scrapyard | Discovered new exit (range 16) 78 | -11/Scrapyard | Entered Materials 237 | -10/Materials | Discovered new exit (range 12) 305 | -10/Materials | Build established: Mutant 354 | -10/Materials | Discovered new exit (range 10) 465 | -10/Materials | Discovered new exit (range 7) 476 | -10/Materials | Entered Mines 658 | -10/Mines | Deemed a non-threat by the Exiles lab entrance 660 | -10/Mines | Discovered new exit (range 5) 666 | -10/Mines | Entered Exiles 666 | -10/Exiles | Found Exiles lab destroyed 694 | -10/Exiles | Discovered new exit (range 15) 1276 | -10/Exiles | Learned location of Zion (-7) 1350 | -10/Exiles | Discovered new exit (range 14) 1697 | -10/Exiles | Entered Mines 1976 | -9/Mines | Assembled infested the area 1981 | -9/Mines | Assisted by a Guerilla fighting off Assembled 2059 | -9/Mines | A weapon hastily lodged in a ceiling crevice suddenly fell to the ground 2094 | -9/Mines | Learned 2 Materials zone layouts 2107 | -9/Mines | Assisted by bots powering up and referring to "LRC-V3" 2169 | -9/Mines | Core integrity fell below 50% 2188 | -9/Mines | Core integrity fell below 20% 2226 | -9/Mines | Destroyed by as-39406 with Assembled Maul Last Messages --------------- 02162_ The unstable cave ceiling collapses. 02163_ Acquired Imp. Terrain Scanner. 02167_ Dropped Flight Unit. 02169_ Acquired 10 matter. 02176_ T-07 Excavator is excavating. 02178_ T-07 Excavator destroyed. 02179_ as-17203 knocked back. 02180_ Flight Unit destroyed. 02188_ as-17203 destroyed. 02191_ Acquired 12 matter. 02196_ as-92653 destroyed. 02200_ Acquired 4 matter. 02202_ Dropped Lgt. Ion Engine. 02204_ Acquired 11 matter. 02206_ Acquired 28 matter. 02207_ Acquired Flight Unit. 02215_ as-46347 destroyed. 02216_ Acquired 10 matter. 02219_ The unstable cave ceiling collapses. 02221_ Acquired 10 matter. Map ----- +----------------------------------------------------+ | | | | | | | | | | | | | | | | | | | ??????????????????????????????????????????? | | ??????????????????????????????????????????? | | ??????????????????????????????????????????? | | ??????????????????????####????????????????? | | ?????????????????????# #????????????????? | | ????????????????????# ?#???????????????? | | ????????????????????# ????????????????? | | ???????????????????? #????????????????? | | ???????????????????? #????????????????? | | ??????????????##????#% #????????????????? | | ?????????????## ##??# #????????????????? | | ?????????????# #??# ?????????????????? | | ?????????????# #??# ###????????????????? | | ??????????????# #### # ##???????????????? | | ??????????????# # ! ####???????#????? | | ??????????????## #*%= ## ##???? ##???? | | ???????????????# @ !! ### ##??? | | ???????????????# a a #??? | | ???????????????## #a# # # a #?? | | ????????????????#### ? ### | | ??????????????????# # ##????? | | ?????????????????### ### #????????? | | ?????????????????# %# ###### ##????????? | | ????????????????## # % #???####?????????? | | ????????????????# # %# ##???????????????? | | ?????????????#### # %[ # #???????????????? | | ???????????### ## ##* # ##??########?????? | | ??????????## #= ####?## "%" #?????? | | ??????????# ! =*!=%!#?# "" #?????? | | ??????????# %#!#!###*#### "" ##??### | | ??????????## ###!!! #!%!= = #??# | | ??????????## ### ! # #####*%=%= #??# | | ????????### ##?# ###?# ##%= ##??# | | ???????## #??#### ####??# #= # #???# | | ??????## ##?????# #?????####= # #???# | | ???#### ##??????# #??????## ! ###?# | | ??## ##??????# #?????## *% ! #### | | ??# !% ##?????# #????## %* #% | | ??# =""" ##????# #???## ==* ! | | ??# """ #????# ##### |%= | | ??# """ #????# | +----------------------------------------------------+ Best States ------------- Heat Dissipation 25 Energy Generation 15 Energy Capacity 250 Matter Stores 300 Matter Capacity 300 Sight Range 16 Robot Scan Range 14 Terrain Scan Density 10 Evasion (%) 62 Recoil Reduction 2 Item Schematics ----------------- None Robot Schematics ------------------ None Fabricated ------------ Nothing Repaired ---------- Nothing Alien Tech Used ----------------- None Achievements -------------- None Challenges ------------ None Game ------ Seed PowerPhasingSpiker Manual? 0 Play Time 00:26:39 Cumulative 9.9 hours Start 2025.06.01 @ 12:18:56 End 2025.06.01 @ 12:43:57 Sessions 1 Manual Loads 0 Difficulty Rogue Special Mode None Game No. 20 Rogue 20 Adventurer 0 Explorer 0 Win Type - Total 0 Types 0/0/0/0/0/0/0/0/0/0 Lore% 8 Gallery% 12 Achievement% 10 Wizard Run 0 Options --------- Layout 1 ASCII 0 Keyboard 0 Movement Mouse Keybinds 0 Fullscreen 1 Font 24/Smallcaps Map View 50x35 Zoom Use 0% Tactical HUD 1 Map Filters NONE Filters NONE Steam 1 RUN: 7571c969-629f-4421-bfff-08e489edf1a2